[Event "Early-Titled-Tuesday-Blitz-October-24-2023"]
[Site "Chess.com"]
[Date "2023.10.24"]
[Round "4"]
[White "EdmundPlayer"]
[Black "DonJuanEGenaro"]
[Result "0-1"]
[WhiteElo "2208"]
[BlackElo "1799"]
[TimeControl "180+1"]
[EndTime "8:37:37 PDT"]
[Termination "DonJuanEGenaro won by resignation"]

1. d4 {[%clk 0:02:44.4]} 1... d5 {[%clk 0:02:58.1]} 2. Nc3 {[%clk 0:02:19.8]}
2... Nf6 {[%clk 0:02:56.5]} 3. Bg5 {[%clk 0:02:18.8]} 3... Bf5 {[%clk
0:02:54.7]} 4. f3 {[%clk 0:02:16.8]} 4... c6 {[%clk 0:02:52.6]} 5. g4 {[%clk
0:02:11.3]} 5... Bg6 {[%clk 0:02:50.5]} 6. e3 {[%clk 0:02:10.2]} 6... h6 {[%clk
0:02:50.3]} 7. Bxf6 {[%clk 0:02:08.6]} 7... exf6 {[%clk 0:02:49.3]} 8. Bd3
{[%clk 0:02:09.5]} 8... Bxd3 {[%clk 0:02:48.1]} 9. Qxd3 {[%clk 0:02:08.3]} 9...
Bd6 {[%clk 0:02:46.6]} 10. Nge2 {[%clk 0:02:05.8]} 10... b5 {[%clk 0:02:44.6]}
11. O-O-O {[%clk 0:02:02.4]} 11... a5 {[%clk 0:02:43.3]} 12. e4 {[%clk
0:02:00.5]} 12... a4 {[%clk 0:02:41.9]} 13. exd5 {[%clk 0:01:59.2]} 13... b4
{[%clk 0:02:40.9]} 14. Ne4 {[%clk 0:01:57.7]} 14... cxd5 {[%clk 0:02:40.2]} 15.
Nxd6+ {[%clk 0:01:56.5]} 15... Qxd6 {[%clk 0:02:40.1]} 16. Rde1 {[%clk
0:01:39.3]} 16... O-O {[%clk 0:02:38]} 17. h4 {[%clk 0:01:38.2]} 17... b3 {[%clk
0:02:31]} 18. a3 {[%clk 0:01:17.4]} 18... bxc2 {[%clk 0:02:28.2]} 19. g5 {[%clk
0:01:09.6]} 19... f5 {[%clk 0:02:12.1]} 20. Qxf5 {[%clk 0:00:57.4]} 20... g6
{[%clk 0:02:11.9]} 21. Qe5 {[%clk 0:00:46.8]} 21... Qxe5 {[%clk 0:02:11.5]} 22.
dxe5 {[%clk 0:00:47.7]} 22... Nc6 {[%clk 0:02:09.2]} 23. f4 {[%clk 0:00:40.6]}
23... Rfc8 {[%clk 0:02:08.5]} 24. gxh6 {[%clk 0:00:32.8]} 24... d4 {[%clk
0:02:06.5]} 25. Rh3 {[%clk 0:00:28.7]} 25... Na5 {[%clk 0:02:02.2]} 26. Nxd4
{[%clk 0:00:26.5]} 26... Rc4 {[%clk 0:01:59.7]} 27. Nxc2 {[%clk 0:00:20.3]}
27... Rac8 {[%clk 0:01:59.1]} 28. Re2 {[%clk 0:00:17.9]} 28... Nb3+ {[%clk
0:01:57.6]} 29. Kd1 {[%clk 0:00:14.4]} 29... Rxf4 {[%clk 0:01:54.6]} 30. e6
{[%clk 0:00:11.9]} 30... Rf1+ {[%clk 0:01:54.2]} 31. Re1 {[%clk 0:00:09.5]}
31... Rxe1+ {[%clk 0:01:51]} 32. Nxe1 {[%clk 0:00:09.8]} 32... Re8 {[%clk
0:01:49.5]} 33. h7+ {[%clk 0:00:08]} 33... Kxh7 {[%clk 0:01:44]} 34. exf7 {[%clk
0:00:08.5]} 34... Rd8+ {[%clk 0:01:42.2]} 35. Ke2 {[%clk 0:00:08.3]} 35... Kg7
{[%clk 0:01:42.1]} 36. Rf3 {[%clk 0:00:07.2]} 36... Nd4+ {[%clk 0:01:41.3]} 37.
Ke3 {[%clk 0:00:07]} 37... Nxf3 {[%clk 0:01:41]} 38. Nxf3 {[%clk 0:00:07.9]}
38... Kxf7 {[%clk 0:01:40.6]} 39. Ne5+ {[%clk 0:00:06.9]} 39... Kg7 {[%clk
0:01:39.7]} 40. Nc6 {[%clk 0:00:06.3]} 40... Rd6 {[%clk 0:01:36.5]} 41. Nb4
{[%clk 0:00:05]} 41... Re6+ {[%clk 0:01:33.2]} 42. Kf4 {[%clk 0:00:04.7]} 42...
Re2 {[%clk 0:01:32.3]} 43. Nd3 {[%clk 0:00:04.7]} 43... Rd2 {[%clk 0:01:31.8]}
44. Nc5 {[%clk 0:00:04.9]} 44... Rxb2 {[%clk 0:01:30]} 45. Nxa4 {[%clk
0:00:05.1]} 45... Ra2 {[%clk 0:01:28.5]} 46. Nc5 {[%clk 0:00:05.1]} 46... Rxa3
{[%clk 0:01:28.5]} 47. Ne6+ {[%clk 0:00:04.6]} 47... Kf6 {[%clk 0:01:27.3]} 48.
Ng5 {[%clk 0:00:04.2]} 48... Ra4+ {[%clk 0:01:26.9]} 49. Kg3 {[%clk 0:00:04.6]}
49... Kf5 {[%clk 0:01:26.5]} 50. Nf3 {[%clk 0:00:04.4]} 50... Ra3 {[%clk
0:01:25.8]} 51. Kg2 {[%clk 0:00:04]} 51... Kf4 {[%clk 0:01:23.5]} 52. Ng5 {[%clk
0:00:03.4]} 52... Rg3+ {[%clk 0:01:21.8]} 53. Kh2 {[%clk 0:00:03.4]} 53... Rg4
{[%clk 0:01:17.3]} 54. Ne6+ {[%clk 0:00:03.4]} 54... Kf5 {[%clk 0:01:16.1]} 55.
Ng5 {[%clk 0:00:03.9]} 55... Rxh4+ {[%clk 0:01:13.7]} 56. Kg3 {[%clk 0:00:03.7]}
56... Rg4+ {[%clk 0:01:13.7]} 57. Kf3 {[%clk 0:00:04.6]} 57... Rxg5 {[%clk
0:01:13.5]} 0-1

[Event "Early-Titled-Tuesday-Blitz-October-24-2023"]
[Site "Chess.com"]
[Date "2023.10.24"]
[Round "4"]
[White "diamonds13"]
[Black "Mr_Lion22"]
[Result "1-0"]
[WhiteElo "2305"]
[BlackElo "2479"]
[TimeControl "180+1"]
[EndTime "8:37:38 PDT"]
[Termination "diamonds13 won on time"]

1. d4 {[%clk 0:03:00.9]} 1... d5 {[%clk 0:02:51.5]} 2. c4 {[%clk 0:03:00.7]}
2... e6 {[%clk 0:02:45.1]} 3. Nc3 {[%clk 0:03:00.5]} 3... c6 {[%clk 0:02:45.2]}
4. e3 {[%clk 0:02:59.4]} 4... Bd6 {[%clk 0:02:44.1]} 5. Nf3 {[%clk 0:02:57.1]}
5... f5 {[%clk 0:02:44.6]} 6. Bd3 {[%clk 0:02:53.5]} 6... Nf6 {[%clk 0:02:44.8]}
7. h3 {[%clk 0:02:50.9]} 7... O-O {[%clk 0:02:45]} 8. g4 {[%clk 0:02:51.2]} 8...
Ne4 {[%clk 0:02:44.8]} 9. cxd5 {[%clk 0:02:44.2]} 9... exd5 {[%clk 0:02:39]} 10.
Ne5 {[%clk 0:02:28.2]} 10... Bxe5 {[%clk 0:02:18.2]} 11. dxe5 {[%clk 0:02:28.3]}
11... Nxc3 {[%clk 0:02:18.9]} 12. bxc3 {[%clk 0:02:26.7]} 12... Qe7 {[%clk
0:02:19.8]} 13. f4 {[%clk 0:02:23]} 13... Qh4+ {[%clk 0:02:19.7]} 14. Kd2 {[%clk
0:02:23]} 14... Qe7 {[%clk 0:01:54.1]} 15. a4 {[%clk 0:02:21.3]} 15... c5 {[%clk
0:01:52.8]} 16. Ba3 {[%clk 0:02:20]} 16... Nc6 {[%clk 0:01:53.5]} 17. Qf3 {[%clk
0:02:13.8]} 17... Kh8 {[%clk 0:01:44.1]} 18. Kc2 {[%clk 0:02:09.8]} 18... Be6
{[%clk 0:01:36.3]} 19. Rab1 {[%clk 0:01:57.2]} 19... b6 {[%clk 0:01:34.7]} 20.
gxf5 {[%clk 0:01:50]} 20... Rxf5 {[%clk 0:01:32.2]} 21. Bxf5 {[%clk 0:01:46.3]}
21... Bxf5+ {[%clk 0:01:33.1]} 22. Kb2 {[%clk 0:01:44.5]} 22... Be4 {[%clk
0:01:31.6]} 23. Qg4 {[%clk 0:01:38.4]} 23... Na5 {[%clk 0:01:30.2]} 24. Rbg1
{[%clk 0:01:30.6]} 24... Nc4+ {[%clk 0:01:20.9]} 25. Ka2 {[%clk 0:01:30.8]}
25... Nxe3 {[%clk 0:01:21.4]} 26. Qg3 {[%clk 0:01:21.9]} 26... Nf5 {[%clk
0:01:20.7]} 27. Qe1 {[%clk 0:01:16.2]} 27... Qd7 {[%clk 0:01:16.6]} 28. Rh2
{[%clk 0:01:12.5]} 28... Qxa4 {[%clk 0:01:15.3]} 29. Qd1 {[%clk 0:01:11.9]}
29... Qa5 {[%clk 0:00:53.7]} 30. Qb3 {[%clk 0:01:04.2]} 30... b5 {[%clk
0:00:51.2]} 31. Rb2 {[%clk 0:01:02.9]} 31... Rb8 {[%clk 0:00:29.4]} 32. e6
{[%clk 0:01:02.3]} 32... Bd3 {[%clk 0:00:14.7]} 33. Qxd5 {[%clk 0:00:54.9]}
33... Rd8 {[%clk 0:00:09.2]} 34. Qxc5 {[%clk 0:00:52.8]} 34... Bc4+ {[%clk
0:00:08.2]} 35. Ka1 {[%clk 0:00:49.7]} 35... Qa4 {[%clk 0:00:05.2]} 36. Rgb1
{[%clk 0:00:45.4]} 36... h6 {[%clk 0:00:04.6]} 37. e7 {[%clk 0:00:44.9]} 37...
Re8 {[%clk 0:00:05]} 38. Qb4 {[%clk 0:00:44.7]} 38... Qa6 {[%clk 0:00:04.2]} 39.
Re1 {[%clk 0:00:44.3]} 39... Kh7 {[%clk 0:00:03.4]} 40. Qc5 {[%clk 0:00:42.9]}
40... Qa4 {[%clk 0:00:03.5]} 41. Qxf5+ {[%clk 0:00:41.9]} 1-0

[Event "Early-Titled-Tuesday-Blitz-October-24-2023"]
[Site "Chess.com"]
[Date "2023.10.24"]
[Round "4"]
[White "Matols"]
[Black "C_K_G"]
[Result "1-0"]
[WhiteElo "2416"]
[BlackElo "1873"]
[TimeControl "180+1"]
[EndTime "8:37:38 PDT"]
[Termination "Matols won on time"]

1. d4 {[%clk 0:03:00.9]} 1... d5 {[%clk 0:02:58.9]} 2. c4 {[%clk 0:03:01.1]}
2... e6 {[%clk 0:02:59.4]} 3. Nc3 {[%clk 0:03:00.4]} 3... Nf6 {[%clk 0:02:59.9]}
4. cxd5 {[%clk 0:03:01]} 4... exd5 {[%clk 0:02:59.9]} 5. Bg5 {[%clk 0:03:01.6]}
5... Be7 {[%clk 0:03:00.5]} 6. e3 {[%clk 0:03:02.1]} 6... a6 {[%clk 0:03:00.8]}
7. Qc2 {[%clk 0:03:00.2]} 7... O-O {[%clk 0:02:59.8]} 8. Bd3 {[%clk 0:02:59.1]}
8... h6 {[%clk 0:02:59.3]} 9. Bh4 {[%clk 0:02:57.5]} 9... b6 {[%clk 0:02:59.5]}
10. Nge2 {[%clk 0:02:56.3]} 10... Bb7 {[%clk 0:02:58.2]} 11. O-O {[%clk
0:02:52.4]} 11... c5 {[%clk 0:02:55.2]} 12. dxc5 {[%clk 0:02:49.6]} 12... bxc5
{[%clk 0:02:56.1]} 13. Rfd1 {[%clk 0:02:49.4]} 13... Nc6 {[%clk 0:02:44.6]} 14.
a3 {[%clk 0:02:46.5]} 14... Ne5 {[%clk 0:02:40.7]} 15. Bf5 {[%clk 0:02:43.4]}
15... Qb6 {[%clk 0:02:33.6]} 16. Bxf6 {[%clk 0:02:36.3]} 16... Qxf6 {[%clk
0:02:30.9]} 17. Nxd5 {[%clk 0:02:34.9]} 17... Qg5 {[%clk 0:01:41.2]} 18. f4
{[%clk 0:02:17]} 18... Nf3+ {[%clk 0:01:30.8]} 19. Kf2 {[%clk 0:02:11.7]} 19...
Qh4+ {[%clk 0:01:28.4]} 20. Kxf3 {[%clk 0:02:11.4]} 20... Rfd8 {[%clk
0:00:59.9]} 21. e4 {[%clk 0:02:10.3]} 21... Bxd5 {[%clk 0:00:52.7]} 22. exd5
{[%clk 0:01:58.3]} 22... Bf6 {[%clk 0:00:47.2]} 23. g3 {[%clk 0:01:50.5]} 23...
Qh5+ {[%clk 0:00:38.1]} 24. Bg4 {[%clk 0:01:48.1]} 24... Qg6 {[%clk 0:00:20.9]}
25. Qxg6 {[%clk 0:01:48]} 25... fxg6 {[%clk 0:00:21.8]} 26. Nc3 {[%clk 0:01:47]}
26... Rab8 {[%clk 0:00:20.4]} 27. Be6+ {[%clk 0:01:45.1]} 27... Kh7 {[%clk
0:00:19.9]} 28. Rd2 {[%clk 0:01:44]} 28... a5 {[%clk 0:00:16.6]} 29. a4 {[%clk
0:01:39.4]} 29... Rb4 {[%clk 0:00:15.1]} 30. d6 {[%clk 0:01:35]} 30... Bd4
{[%clk 0:00:13.4]} 31. d7 {[%clk 0:01:33.8]} 31... Rb6 {[%clk 0:00:12.2]} 32. f5
{[%clk 0:01:32.3]} 32... gxf5 {[%clk 0:00:08]} 33. Bxf5+ {[%clk 0:01:33.2]}
33... g6 {[%clk 0:00:08.6]} 34. Bh3 {[%clk 0:01:33.2]} 34... h5 {[%clk
0:00:07.9]} 35. Nb5 {[%clk 0:01:27.1]} 35... Rf6+ {[%clk 0:00:04.6]} 36. Kg2
{[%clk 0:01:26.7]} 36... g5 {[%clk 0:00:04.3]} 37. Kh1 {[%clk 0:01:11.3]} 37...
g4 {[%clk 0:00:03.5]} 38. Bg2 {[%clk 0:01:11.4]} 38... Rxd7 {[%clk 0:00:04.1]}
39. Nxd4 {[%clk 0:01:07.7]} 39... cxd4 {[%clk 0:00:04.3]} 40. Rad1 {[%clk
0:01:07.1]} 40... Rfd6 {[%clk 0:00:04.3]} 41. Be4+ {[%clk 0:01:06.6]} 41... Kg7
{[%clk 0:00:04.5]} 42. Kg2 {[%clk 0:01:06.9]} 42... Kf6 {[%clk 0:00:04.9]} 43.
Bd3 {[%clk 0:01:05.8]} 43... Rd8 {[%clk 0:00:03.3]} 44. Rf1+ {[%clk 0:01:05.4]}
44... Kg5 {[%clk 0:00:03.8]} 45. Rf5+ {[%clk 0:01:04.5]} 45... Kh6 {[%clk
0:00:04.5]} 46. Rxa5 {[%clk 0:01:04.2]} 46... Rb6 {[%clk 0:00:02.7]} 47. Ra6
{[%clk 0:01:03.9]} 47... Rdd6 {[%clk 0:00:02.3]} 48. Rxb6 {[%clk 0:01:03.7]}
48... Rxb6 {[%clk 0:00:03.2]} 49. a5 {[%clk 0:01:03.3]} 49... Rb3 {[%clk
0:00:02]} 50. a6 {[%clk 0:01:03.2]} 1-0

[Event "Early-Titled-Tuesday-Blitz-October-24-2023"]
[Site "Chess.com"]
[Date "2023.10.24"]
[Round "4"]
[White "deepfear"]
[Black "Jojo_898"]
[Result "0-1"]
[WhiteElo "1783"]
[BlackElo "2347"]
[TimeControl "180+1"]
[EndTime "8:37:38 PDT"]
[Termination "Jojo_898 won on time"]

1. e4 {[%clk 0:02:50.3]} 1... d6 {[%clk 0:03:00]} 2. d4 {[%clk 0:02:50.1]} 2...
Nf6 {[%clk 0:03:00.1]} 3. Nc3 {[%clk 0:02:49]} 3... g6 {[%clk 0:03:00.1]} 4. f4
{[%clk 0:02:48.9]} 4... c6 {[%clk 0:03:00.2]} 5. Nf3 {[%clk 0:02:49.3]} 5... b5
{[%clk 0:03:00.5]} 6. a3 {[%clk 0:02:47.6]} 6... Bg7 {[%clk 0:03:00.5]} 7. Bd3
{[%clk 0:02:47.5]} 7... O-O {[%clk 0:03:00.5]} 8. O-O {[%clk 0:02:47.5]} 8... a5
{[%clk 0:03:00.7]} 9. h3 {[%clk 0:02:45]} 9... Bb7 {[%clk 0:03:00.3]} 10. Qe2
{[%clk 0:02:42.3]} 10... b4 {[%clk 0:03:00.5]} 11. axb4 {[%clk 0:02:42.1]} 11...
axb4 {[%clk 0:02:59.7]} 12. Rxa8 {[%clk 0:02:42]} 12... Bxa8 {[%clk 0:03:00.2]}
13. Nd1 {[%clk 0:02:34.6]} 13... Nh5 {[%clk 0:02:50.5]} 14. Qf2 {[%clk
0:02:18.4]} 14... Nd7 {[%clk 0:02:46]} 15. c3 {[%clk 0:02:15]} 15... e5 {[%clk
0:02:35.5]} 16. fxe5 {[%clk 0:01:36]} 16... dxe5 {[%clk 0:02:33.4]} 17. dxe5
{[%clk 0:01:27.3]} 17... Nxe5 {[%clk 0:02:31.8]} 18. Nxe5 {[%clk 0:01:16.8]}
18... Bxe5 {[%clk 0:02:22.8]} 19. Bc4 {[%clk 0:01:17]} 19... Ng3 {[%clk
0:02:13.6]} 20. Re1 {[%clk 0:00:47.4]} 20... bxc3 {[%clk 0:02:11.9]} 21. bxc3
{[%clk 0:00:33.7]} 21... Qc7 {[%clk 0:01:59.6]} 22. Bh6 {[%clk 0:00:29]} 22...
Rd8 {[%clk 0:01:51.6]} 23. Bg5 {[%clk 0:00:17]} 23... Rd7 {[%clk 0:01:40.6]} 24.
Bh4 {[%clk 0:00:15.8]} 24... Nxe4 {[%clk 0:01:39.5]} 25. Rxe4 {[%clk 0:00:15.2]}
25... Rxd1+ {[%clk 0:01:36.5]} 26. Bf1 {[%clk 0:00:13.2]} 26... c5 {[%clk
0:01:29.4]} 27. Re1 {[%clk 0:00:11.1]} 27... Rxe1 {[%clk 0:01:23]} 28. Qxe1
{[%clk 0:00:11.2]} 28... Qd6 {[%clk 0:01:00.1]} 29. Bf2 {[%clk 0:00:11.4]} 29...
Qf6 {[%clk 0:00:54.4]} 30. Bxc5 {[%clk 0:00:09.4]} 30... Bc6 {[%clk 0:00:53.7]}
31. Bd4 {[%clk 0:00:09]} 31... Bxd4+ {[%clk 0:00:53]} 32. cxd4 {[%clk
0:00:09.2]} 32... Qxd4+ {[%clk 0:00:53.6]} 33. Kh2 {[%clk 0:00:09.7]} 33... Qf4+
{[%clk 0:00:51.5]} 34. Kg1 {[%clk 0:00:09.8]} 34... Qd4+ {[%clk 0:00:48.4]} 35.
Kh2 {[%clk 0:00:09.7]} 35... h5 {[%clk 0:00:47.4]} 36. Qc1 {[%clk 0:00:07.9]}
36... Qd6+ {[%clk 0:00:45.3]} 37. Kg1 {[%clk 0:00:07.4]} 37... h4 {[%clk
0:00:41]} 38. Qc2 {[%clk 0:00:04.9]} 38... Qd4+ {[%clk 0:00:39.6]} 39. Qf2
{[%clk 0:00:04.6]} 39... Qe4 {[%clk 0:00:31.2]} 0-1

[Event "Early-Titled-Tuesday-Blitz-October-24-2023"]
[Site "Chess.com"]
[Date "2023.10.24"]
[Round "4"]
[White "ContrVersia"]
[Black "NovozhilovSemen"]
[Result "0-1"]
[WhiteElo "2906"]
[BlackElo "2698"]
[TimeControl "180+1"]
[EndTime "8:37:40 PDT"]
[Termination "NovozhilovSemen won by resignation"]

1. Nf3 {[%clk 0:02:54.9]} 1... Nf6 {[%clk 0:02:57.2]} 2. c4 {[%clk 0:02:55]}
2... c5 {[%clk 0:02:57.2]} 3. b3 {[%clk 0:02:55.1]} 3... g6 {[%clk 0:02:53.4]}
4. g3 {[%clk 0:02:54.9]} 4... Bg7 {[%clk 0:02:53.8]} 5. Bb2 {[%clk 0:02:55.6]}
5... b6 {[%clk 0:02:53.6]} 6. Bg2 {[%clk 0:02:55.8]} 6... Bb7 {[%clk 0:02:54.2]}
7. O-O {[%clk 0:02:56.6]} 7... O-O {[%clk 0:02:54.2]} 8. d4 {[%clk 0:02:53.6]}
8... cxd4 {[%clk 0:02:54.6]} 9. Qxd4 {[%clk 0:02:53.3]} 9... d6 {[%clk
0:02:54.4]} 10. Nc3 {[%clk 0:02:50.1]} 10... Nbd7 {[%clk 0:02:53.8]} 11. Qf4
{[%clk 0:02:42.9]} 11... Rc8 {[%clk 0:02:48.9]} 12. Rac1 {[%clk 0:02:41.2]}
12... Qc7 {[%clk 0:02:40.4]} 13. Rfd1 {[%clk 0:02:40.2]} 13... Qb8 {[%clk
0:02:39.8]} 14. Qe3 {[%clk 0:02:28.8]} 14... Rfe8 {[%clk 0:02:37.3]} 15. h3
{[%clk 0:02:29.1]} 15... Qa8 {[%clk 0:02:37.2]} 16. g4 {[%clk 0:02:29.3]} 16...
h6 {[%clk 0:02:23.6]} 17. Ba1 {[%clk 0:02:22.4]} 17... Ne5 {[%clk 0:02:22.3]}
18. Ne1 {[%clk 0:02:10]} 18... Bxg2 {[%clk 0:02:15.7]} 19. Nxg2 {[%clk
0:02:10.9]} 19... Nfd7 {[%clk 0:02:15.3]} 20. Nd5 {[%clk 0:02:02.2]} 20... Qb7
{[%clk 0:02:00.3]} 21. f4 {[%clk 0:02:01.3]} 21... Nc6 {[%clk 0:01:59.9]} 22.
Bxg7 {[%clk 0:02:00.3]} 22... Kxg7 {[%clk 0:02:00.8]} 23. b4 {[%clk 0:01:43.4]}
23... e6 {[%clk 0:01:51]} 24. Qc3+ {[%clk 0:01:43.3]} 24... Kh7 {[%clk
0:01:48.5]} 25. Nde3 {[%clk 0:01:42.1]} 25... d5 {[%clk 0:01:37.2]} 26. cxd5
{[%clk 0:01:34.2]} 26... exd5 {[%clk 0:01:35.8]} 27. Qb3 {[%clk 0:01:25.9]}
27... d4 {[%clk 0:00:52]} 28. Qxf7+ {[%clk 0:01:25.4]} 28... Kh8 {[%clk
0:00:51.1]} 29. Qxg6 {[%clk 0:01:17.7]} 29... dxe3 {[%clk 0:00:42.9]} 30. Qxh6+
{[%clk 0:01:17.9]} 30... Kg8 {[%clk 0:00:43]} 31. Qg6+ {[%clk 0:01:18.2]} 31...
Kf8 {[%clk 0:00:39.4]} 32. Nh4 {[%clk 0:00:58.9]} 32... Ne7 {[%clk 0:00:37.5]}
33. Qh6+ {[%clk 0:00:55.9]} 33... Kg8 {[%clk 0:00:37.5]} 34. Qg5+ {[%clk
0:00:55.3]} 34... Kf8 {[%clk 0:00:34.2]} 35. Rxc8 {[%clk 0:00:50.6]} 35... Rxc8
{[%clk 0:00:31.2]} 36. f5 {[%clk 0:00:47.3]} 36... Rc6 {[%clk 0:00:19.6]} 37.
Qxe3 {[%clk 0:00:40]} 37... Qc7 {[%clk 0:00:17.3]} 38. Kg2 {[%clk 0:00:36.5]}
38... Rc3 {[%clk 0:00:16.5]} 39. Qh6+ {[%clk 0:00:35.6]} 39... Ke8 {[%clk
0:00:16.5]} 40. Qh8+ {[%clk 0:00:35.6]} 40... Kf7 {[%clk 0:00:14.7]} 41. Rxd7
{[%clk 0:00:33.4]} 41... Qg3+ {[%clk 0:00:13.5]} 0-1

[Event "Early-Titled-Tuesday-Blitz-October-24-2023"]
[Site "Chess.com"]
[Date "2023.10.24"]
[Round "4"]
[White "Lady_Nika"]
[Black "UmarovSabir"]
[Result "1/2-1/2"]
[WhiteElo "2489"]
[BlackElo "2310"]
[TimeControl "180+1"]
[EndTime "8:37:41 PDT"]
[Termination "Game drawn by repetition"]

1. e4 {[%clk 0:03:00.9]} 1... c6 {[%clk 0:02:58.2]} 2. d4 {[%clk 0:03:00.8]}
2... g6 {[%clk 0:02:58.2]} 3. Nc3 {[%clk 0:03:01.7]} 3... Bg7 {[%clk 0:02:58]}
4. f3 {[%clk 0:03:01.4]} 4... d5 {[%clk 0:02:57.2]} 5. e5 {[%clk 0:03:00.1]}
5... f6 {[%clk 0:02:56.9]} 6. f4 {[%clk 0:02:58.2]} 6... Nh6 {[%clk 0:02:55.8]}
7. Nf3 {[%clk 0:02:57.8]} 7... Bg4 {[%clk 0:02:54.7]} 8. Be3 {[%clk 0:02:56.6]}
8... Qb6 {[%clk 0:02:52.5]} 9. Na4 {[%clk 0:02:44.4]} 9... Qa5+ {[%clk
0:02:44.3]} 10. c3 {[%clk 0:02:43.9]} 10... Nf5 {[%clk 0:02:43.5]} 11. Bf2
{[%clk 0:02:43.6]} 11... fxe5 {[%clk 0:02:41.9]} 12. fxe5 {[%clk 0:02:41.7]}
12... Bh6 {[%clk 0:02:36.2]} 13. Bd3 {[%clk 0:02:26.3]} 13... O-O {[%clk
0:02:27.7]} 14. b4 {[%clk 0:02:17.8]} 14... Qc7 {[%clk 0:02:18.3]} 15. Nc5
{[%clk 0:02:17.3]} 15... Ne3 {[%clk 0:02:02.9]} 16. Bxe3 {[%clk 0:02:16.7]}
16... Bxe3 {[%clk 0:02:03.8]} 17. Qe2 {[%clk 0:02:16.3]} 17... Bh6 {[%clk
0:01:55.5]} 18. O-O {[%clk 0:02:15.3]} 18... b6 {[%clk 0:01:53.9]} 19. Nb3
{[%clk 0:02:14.6]} 19... Nd7 {[%clk 0:01:50.2]} 20. h3 {[%clk 0:02:08]} 20...
Bxf3 {[%clk 0:01:46]} 21. Rxf3 {[%clk 0:02:08]} 21... Rxf3 {[%clk 0:01:46.5]}
22. Qxf3 {[%clk 0:02:08]} 22... Rf8 {[%clk 0:01:47.4]} 23. Qg4 {[%clk
0:02:07.6]} 23... Nxe5 {[%clk 0:01:17.4]} 24. dxe5 {[%clk 0:02:04.8]} 24... Qxe5
{[%clk 0:01:18.3]} 25. Bxg6 {[%clk 0:01:44.4]} 25... hxg6 {[%clk 0:00:52]} 26.
Qxg6+ {[%clk 0:01:43.5]} 26... Bg7 {[%clk 0:00:41.9]} 27. Qxc6 {[%clk
0:01:42.6]} 27... e6 {[%clk 0:00:33.8]} 28. Nd4 {[%clk 0:01:36.3]} 28... Qe3+
{[%clk 0:00:22.9]} 29. Kh1 {[%clk 0:01:35]} 29... Rf6 {[%clk 0:00:22.5]} 30.
Qe8+ {[%clk 0:01:31.7]} 30... Kh7 {[%clk 0:00:21.4]} 31. Nf3 {[%clk 0:01:24.6]}
31... Qxc3 {[%clk 0:00:15.6]} 32. Rf1 {[%clk 0:01:08.6]} 32... Rg6 {[%clk
0:00:13.8]} 33. Nh4 {[%clk 0:01:05.2]} 33... Rg5 {[%clk 0:00:13.2]} 34. Qxe6
{[%clk 0:01:02.5]} 34... Qd3 {[%clk 0:00:10.7]} 35. Qf7 {[%clk 0:00:54.7]} 35...
Qe4 {[%clk 0:00:05.6]} 36. Rf4 {[%clk 0:00:53.4]} 36... Qe1+ {[%clk 0:00:05]}
37. Kh2 {[%clk 0:00:50.2]} 37... Qg3+ {[%clk 0:00:05]} 38. Kg1 {[%clk
0:00:46.4]} 38... Qe1+ {[%clk 0:00:05.7]} 39. Kh2 {[%clk 0:00:38.4]} 39... Qg3+
{[%clk 0:00:05.9]} 40. Kh1 {[%clk 0:00:38.6]} 40... Qe1+ {[%clk 0:00:06.1]} 41.
Kh2 {[%clk 0:00:38.8]} 1/2-1/2

[Event "Early-Titled-Tuesday-Blitz-October-24-2023"]
[Site "Chess.com"]
[Date "2023.10.24"]
[Round "4"]
[White "Predator0608"]
[Black "milovichalex"]
[Result "1-0"]
[WhiteElo "2507"]
[BlackElo "2308"]
[TimeControl "180+1"]
[EndTime "8:37:46 PDT"]
[Termination "Predator0608 won by resignation"]

1. e4 {[%clk 0:03:00.9]} 1... e5 {[%clk 0:02:59.6]} 2. Nf3 {[%clk 0:03:01.4]}
2... Nc6 {[%clk 0:03:00]} 3. Bc4 {[%clk 0:03:01.9]} 3... Nf6 {[%clk 0:03:00]} 4.
Ng5 {[%clk 0:03:01.8]} 4... d5 {[%clk 0:02:59.8]} 5. exd5 {[%clk 0:03:02.7]}
5... Na5 {[%clk 0:03:00]} 6. Bb5+ {[%clk 0:03:03.2]} 6... c6 {[%clk 0:03:00.5]}
7. dxc6 {[%clk 0:03:04.1]} 7... bxc6 {[%clk 0:03:01.2]} 8. Bd3 {[%clk
0:03:04.8]} 8... Ng4 {[%clk 0:03:01.6]} 9. Ne4 {[%clk 0:03:03.4]} 9... f5 {[%clk
0:02:59.8]} 10. Be2 {[%clk 0:03:03.9]} 10... h5 {[%clk 0:02:58]} 11. h3 {[%clk
0:03:03.7]} 11... fxe4 {[%clk 0:02:57.4]} 12. hxg4 {[%clk 0:03:03.5]} 12... Bc5
{[%clk 0:02:55]} 13. Nc3 {[%clk 0:03:00.4]} 13... Qd4 {[%clk 0:02:48.4]} 14. Rf1
{[%clk 0:02:40.7]} 14... hxg4 {[%clk 0:02:33.7]} 15. Bxg4 {[%clk 0:02:31.3]}
15... Rh1 {[%clk 0:02:31.6]} 16. Nxe4 {[%clk 0:01:56.7]} 16... Qxe4+ {[%clk
0:02:23.2]} 17. Qe2 {[%clk 0:01:47.6]} 17... Rxf1+ {[%clk 0:02:20.6]} 18. Kxf1
{[%clk 0:01:47]} 18... Qxg4 {[%clk 0:02:15.8]} 19. Qxe5+ {[%clk 0:01:47.3]}
19... Be7 {[%clk 0:02:12.2]} 20. f3 {[%clk 0:01:47.4]} 20... Qg5 {[%clk
0:01:48.2]} 21. Qe2 {[%clk 0:01:42.5]} 21... Qb5 {[%clk 0:01:30.2]} 22. d3
{[%clk 0:01:40.8]} 22... Qh5 {[%clk 0:01:22.4]} 23. b4 {[%clk 0:01:32.9]} 23...
Nb7 {[%clk 0:01:14]} 24. b5 {[%clk 0:01:27.2]} 24... Qxb5 {[%clk 0:01:05]} 25.
Ba3 {[%clk 0:01:25.6]} 25... c5 {[%clk 0:01:01.5]} 26. Re1 {[%clk 0:01:24.8]}
26... Qd7 {[%clk 0:00:58]} 27. Qe4 {[%clk 0:01:23.9]} 27... Rb8 {[%clk
0:00:53.2]} 28. Qg6+ {[%clk 0:01:23.8]} 28... Kd8 {[%clk 0:00:52.9]} 29. Qxg7
{[%clk 0:01:20.9]} 29... Bd6 {[%clk 0:00:48.5]} 30. Qc3 {[%clk 0:01:06.2]} 30...
Bg3 {[%clk 0:00:29.9]} 31. Qf6+ {[%clk 0:01:02.8]} 31... Kc7 {[%clk 0:00:27.3]}
32. Re7 {[%clk 0:01:03.4]} 32... Bd6 {[%clk 0:00:19.6]} 33. Rxd7+ {[%clk
0:01:01.1]} 33... Bxd7 {[%clk 0:00:20.5]} 34. Bb2 {[%clk 0:00:55.6]} 34... Re8
{[%clk 0:00:19.7]} 35. Qg5 {[%clk 0:00:50.6]} 35... Na5 {[%clk 0:00:17.6]} 36.
f4 {[%clk 0:00:47.9]} 36... Nc6 {[%clk 0:00:17.8]} 37. g4 {[%clk 0:00:44.2]}
37... Nd4 {[%clk 0:00:18.3]} 38. Bxd4 {[%clk 0:00:42]} 38... cxd4 {[%clk
0:00:18.4]} 39. f5 {[%clk 0:00:42.9]} 39... Bb4 {[%clk 0:00:16.9]} 40. Qf4+
{[%clk 0:00:42]} 40... Bd6 {[%clk 0:00:13.5]} 41. Qxd4 {[%clk 0:00:42.9]} 41...
Bc6 {[%clk 0:00:13.7]} 42. f6 {[%clk 0:00:43]} 42... Rh8 {[%clk 0:00:13.5]} 43.
f7 {[%clk 0:00:40.5]} 43... Rh1+ {[%clk 0:00:13.1]} 44. Kf2 {[%clk 0:00:40]}
44... Rh2+ {[%clk 0:00:13.5]} 45. Ke1 {[%clk 0:00:39.9]} 45... Bf3 {[%clk
0:00:08.1]} 46. Qxd6+ {[%clk 0:00:38.3]} 46... Kxd6 {[%clk 0:00:07.7]} 47. f8=Q+
{[%clk 0:00:39.2]} 1-0